bitfinex/quotes_SOLUSD_20260310
["timestamp","ask_amount","ask_price","bid_price","bid_amount"]
[1773101168955,2.43868861,85.058,85.031,2.31268881]
[1773101169262,7.55309308,85.06,85.05,4.2520262]
[1773101169953,7.55309308,85.06,85.032,2.31268881]
[1773101170154,2.43868861,85.058,85.023,2.31268881]
[1773101170346,2.43868861,85.058,85.03,4.2520262]
[1773101171049,2.43868861,85.058,85.028,2.31268881]
[1773101171253,2.43868861,85.058,85.03,4.2520262]
[1773101171857,2.43868861,85.056,85.031,11.76041678]
[1773101175758,11.75709834,85.055,85.031,11.76041678]
[1773101175947,2.43868861,85.054,85.031,11.76041678]
[1773101179960,2.43868861,85.054,85.04,4.24918042]
[1773101180462,2.43868861,85.052,85.032,2.31268881]
[1773101182957,2.43868861,85.05,85.032,2.31268881]
[1773101185964,2.43868861,85.05,85.04,4.24918042]
[1773101186554,2.43868861,85.05,85.032,2.31268881]
[1773101186754,2.43868861,85.05,85.04,4.24918042]
[1773101187270,2.43868861,85.05,85.031,11.76032608]
[1773101190563,41.15274723,85.049,85.017,11.76234993]
[1773101190872,41.15274723,85.049,84.976,47.0716862]
[1773101190873,2.43868861,85.039,85.011,2.31268881]
[1773101191773,2.43868861,85.039,85.02,4.24918042]
[1773101193260,2.43868861,85.039,85.0,4.24918042]
[1773101193261,2.3953232,85.05,85.031,2.33264842]
[1773101193460,11.75682189,85.057,85.04,4.24918042]
[1773101193875,11.75682189,85.057,85.041,2.33264842]
[1773101194173,3.69383402,85.083,85.041,2.33264842]
[1773101194174,29.38561646,85.076,85.05,4.24918042]
[1773101194366,11.75433441,85.075,85.05,4.24918042]
[1773101194760,3.69383402,85.086,85.05,4.24918042]
[1773101195464,2.3953232,85.085,85.05,4.24918042]
[1773101195971,4.24918042,85.09,85.05,4.24918042]
[1773101195972,2.3953232,85.083,85.05,4.24918042]
[1773101197272,2.3953232,85.083,85.06,6.58182884]
[1773101197575,2.3953232,85.083,85.061,2.33264842]
[1773101197878,2.3953232,85.081,85.061,2.33264842]
[1773101198257,11.75336733,85.082,85.061,2.33264842]
[1773101199470,2.3953232,85.082,85.061,2.33264842]
[1773101199672,2.3953232,85.082,85.06,4.24918042]
[1773101200261,2.3953232,85.082,85.061,2.33264842]
[1773101201685,11.75350548,85.081,85.061,2.33264842]
[1773101201985,2.3953232,85.08,85.061,2.33264842]
[1773101203063,41.13726918,85.081,85.061,2.33264842]
[1773101203685,43.53259238,85.081,85.061,2.33264842]
[1773101203878,2.3953232,85.08,85.061,2.33264842]
[1773101207287,2.3953232,85.069,85.001,2.33264842]
[1773101207586,2.3953232,85.049,85.021,2.33264842]
[1773101207772,2.3953232,85.049,85.011,2.33264842]
[1773101208574,2.3953232,85.049,85.021,2.33264842]
[1773101209280,2.3953232,85.047,85.021,2.33264842]
[1773101210789,2.30766104,85.045,85.02,4.24918042]
[1773101210992,2.30766104,85.045,85.011,2.29447303]
[1773101211696,2.30766104,85.039,85.011,2.29447303]
[1773101212073,2.30766104,85.039,85.012,2.29447303]
[1773101212989,2.30766104,85.039,85.01,4.24918042]
[1773101212990,11.75944871,85.038,85.019,2.29447303]
[1773101213687,47.02430751,85.063,85.019,2.29447303]
[1773101213688,11.75828687,85.047,85.03,4.24918042]
[1773101214078,11.75828687,85.047,85.031,2.29447303]
[1773101217095,11.75828687,85.047,85.02,4.24918042]
[1773101217096,2.30766104,85.046,85.021,2.29447303]
[1773101217890,2.30766104,85.044,85.021,2.29447303]
[1773101218087,14.06558007,85.05,85.021,2.29447303]
[1773101218297,2.30766104,85.049,85.021,2.29447303]
[1773101218879,2.30766104,85.049,85.023,2.29447303]
[1773101219088,2.30766104,85.049,85.022,11.76166168]
[1773101219089,2.30766104,85.049,85.031,2.29447303]
[1773101219294,11.75791903,85.05,85.031,2.29447303]
[1773101219780,2.30766104,85.055,85.033,2.29447303]
[1773101219981,11.75662392,85.059,85.04,4.24918042]
[1773101220194,11.75662392,85.059,85.04,6.54365345]
[1773101220693,2.30766104,85.058,85.04,6.54365345]
[1773101220992,2.30766104,85.058,85.041,2.29447303]
[1773101221196,11.75662392,85.059,85.041,2.29447303]
[1773101223091,2.30766104,85.062,85.041,2.29447303]
[1773101223299,2.37367184,85.049,85.01,4.24918042]
[1773101223486,2.37367184,85.049,85.001,11.76456747]
[1773101223487,2.37367184,85.049,85.002,29.4110629]
[1773101223685,2.37367184,85.039,85.001,11.76456747]
[1773101224199,2.37367184,85.029,84.993,11.76567482]
[1773101225180,2.37367184,85.027,84.993,11.76567482]
[1773101225380,2.37367184,85.027,84.994,2.41317504]
[1773101225576,2.37367184,85.027,85.001,2.41317504]
[1773101226580,2.37367184,85.027,84.994,2.41317504]
[1773101227005,2.37367184,85.019,84.99,10.60451234]
[1773101227188,2.37367184,85.017,84.99,10.60451234]
[1773101228084,2.37367184,85.017,84.991,11.76595168]
[1773101229002,2.37367184,85.017,84.992,2.41317504]
[1773101229183,14.1361636,85.016,84.993,11.76567482]
[1773101229503,14.1361636,85.016,84.994,2.41317504]
[1773101230104,2.37367184,85.016,84.994,2.41317504]
[1773101230404,14.1361636,85.016,84.994,2.41317504]
[1773101231902,14.1361636,85.016,84.995,14.178573]
[1773101232098,14.1361636,85.016,84.99,14.85369276]
[1773101232099,2.37367184,85.015,84.992,2.41317504]
[1773101232293,11.76249176,85.016,84.992,2.41317504]
[1773101232491,11.76249176,85.016,84.994,2.41317504]
[1773101232888,14.1361636,85.016,84.994,2.41317504]
[1773101233089,2.37367184,85.015,84.994,2.41317504]
[1773101234025,11.76276848,85.014,84.994,2.41317504]
[1773101237111,2.37367184,85.014,84.994,2.41317504]
[1773101239911,2.37367184,85.012,84.994,2.41317504]
[1773101240099,2.37367184,85.012,84.992,11.76572337]
[1773101240298,2.37367184,85.012,84.989,2.41317504]
[1773101240608,2.37367184,85.012,84.99,4.25349605]
[1773101241407,2.37367184,85.012,84.991,2.41317504]
[1773101242898,2.37367184,85.01,84.991,2.41317504]
[1773101243292,2.37367184,85.01,84.99,4.25349605]
[1773101245107,2.37367184,85.01,84.966,56.80681129]
[1773101245108,2.37367184,85.008,84.97,4.25349605]
[1773101245290,2.37367184,85.008,84.971,2.41317504]
[1773101246207,2.37367184,85.008,84.98,4.25349605]
[1773101246406,2.37367184,85.006,84.976,14.18120365]
[1773101247596,2.37367184,85.006,84.98,4.25349605]
[1773101248814,2.37367184,85.004,84.981,11.76733622]
[1773101250523,2.37367184,85.029,84.991,2.41317504]
[1773101250816,11.76083172,85.028,85.001,11.76456747]
[1773101251010,2.37367184,85.027,85.001,11.76456747]
[1773101251817,2.37367184,85.027,85.0,4.25349605]
[1773101253618,2.26240557,85.025,85.0,4.25349605]
[1773101254818,2.26240557,85.023,85.0,4.25349605]
[1773101256199,2.26240557,85.023,84.995,14.06589341]
[1773101256399,2.26240557,85.023,84.995,11.76530898]
[1773101257508,4.25349605,85.02,84.991,11.76595168]
[1773101257702,2.26240557,85.019,84.991,11.76595168]
[1773101258618,2.26240557,85.019,84.992,2.30058443]
[1773101258814,2.26240557,85.019,84.991,11.76595168]
[1773101259120,2.26240557,85.019,84.991,14.06653611]
[1773101259616,2.26240557,85.017,84.991,14.06653611]
[1773101260821,2.26240557,85.015,84.991,14.06653611]
[1773101261616,2.26240557,85.015,84.99,4.25349605]
[1773101262628,2.26240557,85.015,84.991,11.76595168]
[1773101263815,2.26240557,85.013,84.991,11.76595168]
[1773101264044,2.26240557,85.013,84.99,4.25349605]
[1773101264222,2.26240557,85.013,84.987,11.76638961]
[1773101266627,2.26240557,85.016,85.0,4.25349605]
[1773101266925,2.26240557,85.016,84.99,4.25349605]
[1773101270021,2.26240557,85.016,84.962,56.80681129]
[1773101270022,2.32265839,85.014,84.979,2.30526891]
[1773101270208,2.32265839,85.014,84.981,2.30526891]
[1773101273014,4.25349605,85.03,84.981,2.30526891]
[1773101273015,2.32265839,85.012,84.981,2.30526891]
[1773101274929,2.32265839,85.01,84.981,2.30526891]
[1773101275226,2.32265839,85.01,84.98,16.02097074]
[1773101275619,2.32265839,85.01,84.98,4.25349605]
[1773101276028,2.32265839,85.01,84.981,11.76733622]
[1773101276425,2.32265839,85.009,84.977,14.07302549]
[1773101276819,2.32265839,85.009,84.98,6.55876496]
[1773101277019,2.32265839,85.007,84.981,2.30526891]
[1773101280530,2.32265839,85.005,84.981,2.30526891]
[1773101280829,2.32265839,85.005,84.941,3.69383402]
[1773101280830,4.25349605,85.0,84.96,4.25349605]
[1773101281034,2.32265839,84.999,84.971,2.30526891]
[1773101281224,11.76387549,85.006,84.991,2.30526891]
[1773101282034,2.32265839,85.021,85.001,2.30526891]
[1773101282934,11.76193836,85.02,85.001,2.30526891]
[1773101287619,2.23255974,85.02,85.001,2.30526891]
[1773101291451,13.99463645,85.019,85.001,2.30526891]
[1773101292752,2.23255974,85.018,85.001,2.30526891]
[1773101293948,11.76235341,85.017,85.001,2.30526891]
[1773101295954,2.23255974,85.017,85.001,2.30526891]
[1773101296952,2.23255974,85.017,84.991,2.28310706]
[1773101298553,2.23255974,85.015,84.993,2.28310706]
[1773101298765,11.76249176,85.016,85.0,4.25349605]
[1773101299061,11.76249176,85.016,85.001,2.28310706]
[1773101299547,2.23255974,85.019,85.001,2.28310706]
[1773101300556,2.23255974,85.03,85.003,2.28310706]
[1773101300754,2.23255974,85.055,85.021,2.28310706]
[1773101301050,2.23255974,85.051,85.021,2.28310706]
[1773101301437,2.23255974,85.049,85.015,2.28310706]
[1773101302663,2.23255974,85.047,85.015,2.28310706]
[1773101305872,2.18948308,85.045,85.015,2.28310706]
[1773101307254,2.18948308,85.045,85.016,11.76249176]
[1773101307456,2.18948308,85.045,85.015,2.28310706]
[1773101308342,11.75861906,85.044,85.016,11.76249176]
[1773101308572,2.18948308,85.043,85.017,2.19797742]
[1773101310668,13.94837868,85.042,85.019,2.19797742]
[1773101310956,2.18948308,85.052,85.03,4.25305822]
[1773101311163,2.18948308,85.052,85.031,2.19797742]
[1773101311164,11.75783698,85.05,85.031,2.19797742]
[1773101311344,13.94732006,85.05,85.031,2.19797742]
[1773101313953,2.35514066,85.049,85.021,2.1977678]
[1773101314462,2.35514066,85.049,85.015,2.1977678]
[1773101314669,2.35514066,85.039,85.004,2.1977678]
[1773101315062,2.35514066,85.019,84.991,2.1977678]
[1773101316164,2.35514066,85.017,84.991,2.1977678]
[1773101316362,14.11445109,85.039,85.011,2.1977678]
[1773101316594,2.35514066,85.038,85.011,2.1977678]
[1773101317970,2.35514066,85.038,85.006,2.1977678]
[1773101318268,2.35514066,85.036,85.006,2.1977678]
[1773101320166,2.35514066,85.036,85.007,11.7637371]
[1773101320472,2.35514066,85.036,85.008,2.1977678]
[1773101321769,11.75986358,85.035,85.008,2.1977678]
[1773101321961,2.35514066,85.034,85.008,2.1977678]
[1773101323963,2.35514066,85.032,85.01,4.25305822]
[1773101324162,2.35514066,85.032,85.011,2.1977678]
[1773101324768,2.35514066,85.037,85.011,2.1977678]
[1773101326972,2.35514066,85.035,85.006,2.1977678]
[1773101329774,2.31603205,85.04,85.021,2.28973333]
[1773101330980,14.0752042,85.04,85.021,2.28973333]
[1773101331164,2.31603205,85.039,85.021,2.28973333]
[1773101332777,11.75944871,85.038,85.021,2.28973333]
[1773101334361,2.31603205,85.042,85.023,2.28973333]
[1773101334675,2.31603205,85.048,85.023,2.28973333]
[1773101334884,11.75820428,85.047,85.031,2.28973333]
[1773101335178,2.31603205,85.046,85.025,2.28973333]
[1773101336885,11.7584808,85.045,85.025,2.28973333]
[1773101337083,2.31603205,85.044,85.025,2.28973333]
[1773101338188,2.31603205,85.049,85.027,2.28973333]
[1773101338389,2.31603205,85.049,85.031,2.28973333]
[1773101340078,2.31603205,85.047,85.026,2.28973333]
[1773101340779,29.39020419,85.063,85.026,2.28973333]
[1773101340988,2.31603205,85.059,85.021,11.76180002]
[1773101341172,70.52517748,85.076,85.018,2.28973333]
[1773101341173,2.31603205,85.049,85.018,2.28973333]
[1773101341773,2.31603205,85.049,85.01,4.25305822]
[1773101342189,2.31603205,85.047,85.012,2.28973333]
[1773101342793,2.31603205,85.047,85.0,29.41145631]
[1773101342794,2.31603205,85.039,85.0,4.25305822]
[1773101342998,2.31603205,85.019,84.981,2.28973333]
[1773101343689,2.34819551,85.009,84.973,2.29783035]
[1773101344073,11.76359872,85.008,84.974,11.76830559]
[1773101344276,2.34819551,85.007,84.974,11.76830559]
[1773101345594,2.34819551,85.005,84.974,11.76830559]
[1773101346994,2.34819551,85.005,84.971,2.29783035]
[1773101347179,2.34819551,85.005,84.97,11.76880907]
[1773101347498,2.34819551,85.003,84.967,2.29783035]
[1773101349602,2.34819551,85.001,84.969,2.29783035]
[1773101350100,2.34819551,84.999,84.969,2.29783035]
[1773101350702,2.34819551,84.999,84.964,14.06742732]
[1773101351698,2.34819551,84.997,84.96,11.77018521]
[1773101352498,2.34819551,84.997,84.961,2.29783035]
[1773101352881,11.76371722,85.008,84.971,2.29783035]
[1773101353104,11.76371722,85.008,84.96,41.19579726]
[1773101353105,2.34819551,85.007,84.981,2.29783035]
[1773101353584,2.34819551,85.005,84.981,2.29783035]
[1773101354684,2.34819551,85.005,84.983,2.29783035]
[1773101355586,2.34819551,85.003,84.98,4.25305822]
[1773101355782,2.34819551,85.003,84.977,11.76776531]
[1773101356203,2.34819551,85.003,84.972,2.29783035]
[1773101356406,2.34819551,85.003,84.973,2.29783035]
[1773101357097,2.34819551,85.003,84.98,6.55088857]
[1773101357278,2.34819551,85.003,84.981,2.29783035]
[1773101358812,11.76415227,85.004,84.98,4.25305822]
[1773101358813,2.34819551,85.001,84.98,4.25305822]
[1773101359304,2.34819551,85.001,84.982,2.29783035]
[1773101361702,11.76433408,85.003,84.984,2.29783035]
[1773101362006,2.34819551,85.002,84.984,2.29783035]
[1773101362596,2.34819551,85.012,84.984,2.29783035]
[1773101363312,2.34819551,85.039,85.001,2.29783035]
[1773101363688,2.34819551,85.036,85.001,2.29783035]
[1773101364489,2.34819551,85.036,85.003,2.29783035]
[1773101364692,2.34819551,85.036,85.011,2.29783035]
[1773101365909,2.34819551,85.034,85.011,2.29783035]
[1773101366109,2.34819551,85.034,85.013,2.29783035]
[1773101366306,2.34819551,85.034,85.01,4.25450624]
[1773101366610,2.34819551,85.034,85.011,2.29783035]
[1773101367815,2.34819551,85.032,85.011,2.29783035]
[1773101369621,2.34819551,85.03,85.01,4.25450624]
[1773101369923,2.34819551,85.019,84.98,4.25450624]
[1773101370128,2.34819551,85.009,84.979,2.29783035]
[1773101371614,2.34819551,85.007,84.98,4.25450624]
[1773101374026,41.17259552,85.008,84.981,2.32061656]
[1773101374027,2.17053236,85.005,84.981,2.32061656]
[1773101374201,2.17053236,85.017,84.991,2.32061656]
[1773101375321,2.17053236,85.017,85.0,4.25450624]
[1773101376115,13.93219404,85.022,85.0,6.5751228]
[1773101376416,2.17053236,85.021,85.0,2.32061656]
[1773101378123,2.17053236,85.019,85.0,2.32061656]
[1773101379802,11.76221506,85.018,85.0,2.32061656]
[1773101380399,2.17053236,85.017,85.0,2.32061656]
[1773101380604,2.17053236,85.017,84.994,14.08611022]
[1773101381706,2.17053236,85.015,84.994,14.08611022]
[1773101382110,2.17053236,85.015,84.962,56.80681129]
[1773101382111,2.17053236,85.015,84.988,2.32061656]
[1773101382428,2.17053236,85.015,84.982,2.32061656]
[1773101383519,2.17053236,85.015,84.984,2.32061656]
[1773101383721,2.17053236,85.015,84.952,56.80681129]
[1773101383722,11.76249176,85.016,85.001,2.32061656]
[1773101384731,13.93177905,85.025,85.001,2.32061656]
[1773101384916,2.17053236,85.024,85.001,2.32061656]
[1773101386926,13.93205571,85.023,85.001,2.32061656]
[1773101387507,2.17053236,85.027,85.002,2.32061656]
[1773101388105,11.76085527,85.028,85.002,2.32061656]
[1773101388309,11.76085527,85.028,85.01,6.57523773]
[1773101388510,14.02592527,85.032,85.011,2.32073149]
[1773101389631,2.26564679,85.031,85.011,2.32073149]
[1773101390133,2.26564679,85.031,85.005,2.32002479]
[1773101390729,2.26564679,85.048,85.011,2.32002479]
[1773101392830,2.26564679,85.046,85.011,2.32002479]
[1773101393233,2.26564679,85.039,85.003,2.3189949]
[1773101393413,41.15371499,85.047,84.978,56.80681129]
[1773101393414,2.26564679,85.029,84.99,4.25450624]
[1773101393610,2.26564679,85.019,84.982,2.3189949]
[1773101394330,2.26564679,85.019,84.99,4.25450624]
[1773101394632,2.26564679,85.019,84.991,2.31865946]
[1773101395329,2.26564679,85.017,84.992,14.08414112]
[1773101397028,29.40324368,85.025,84.992,14.08414112]
[1773101397029,14.02813855,85.016,84.993,2.31767607]
[1773101399640,14.02813855,85.016,84.994,14.08257555]
[1773101399841,14.02813855,85.016,84.995,2.31672618]
[1773101400134,2.26564679,85.015,84.995,2.31672618]
[1773101400334,2.26564679,85.015,84.994,11.76553639]
[1773101400536,2.26564679,85.009,84.968,2.31672618]
[1773101400738,2.26564679,84.999,84.961,2.31672618]
[1773101401234,2.26564679,84.999,84.951,2.3164168]
[1773101401737,2.26564679,84.999,84.931,10.60451234]
[1773101401738,2.26564679,84.969,84.931,12.92062331]
[1773101401916,2.26564679,84.959,84.931,10.60451234]
[1773101402116,2.26564679,84.959,84.93,0.2]
[1773101403618,2.19712897,84.949,84.93,0.2]
[1773101405927,2.19712897,84.947,84.93,1e-08]
[1773101410941,2.19712897,84.945,84.93,1e-08]
[1773101416142,2.19712897,84.943,84.93,1e-08]
[1773101418236,2.19712897,84.943,84.92,0.2]
[1773101418237,2.19712897,84.939,84.92,0.2]
[1773101418636,11.77219409,84.946,84.922,2.31141776]
[1773101419130,11.77161927,84.951,84.922,2.31141776]
[1773101419546,13.96874824,84.951,84.922,2.31141776]
[1773101420446,2.19712897,84.949,84.924,2.31092379]
[1773101420647,2.19712897,84.949,84.923,11.77537298]
[1773101421346,2.19712897,84.949,84.923,14.08605403]
[1773101421686,2.19712897,84.947,84.923,14.08605403]
[1773101423743,2.19712897,84.945,84.924,2.31020391]
[1773101425455,2.19712897,84.943,84.92,0.2]
[1773101425659,2.19712897,84.943,84.921,11.77565031]
[1773101425835,2.19712897,84.943,84.922,2.30950855]
[1773101427656,2.19712897,84.943,84.923,14.08465505]
[1773101428355,2.19712897,84.941,84.923,14.08465505]
[1773101431253,2.19712897,84.941,84.924,2.30840186]
[1773101434156,2.23210895,84.939,84.922,2.19811995]
[1773101434660,2.23210895,84.939,84.92,0.2]
[1773101435156,2.23210895,84.929,84.9,0.1]
[1773101435338,4.26106994,84.91,84.9,0.1]
[1773101435745,2.23210895,84.912,84.9,0.1]
[1773101436241,4.26106994,84.92,84.9,0.1]
[1773101436242,2.23210895,84.91,84.9,0.1]
[1773101437751,6.49317889,84.93,84.901,2.19811995]
[1773101437936,4.26106994,84.93,84.901,2.19811995]
[1773101438140,2.23210895,84.931,84.903,2.19811995]
[1773101438547,2.23210895,84.936,84.903,2.19811995]
[1773101438766,14.00343579,84.953,84.921,1.37394921]
[1773101439867,14.00343579,84.953,84.923,1.37375655]
[1773101440174,2.23210895,84.952,84.923,1.37375655]
[1773101442849,2.23210895,84.95,84.925,1.37319174]
[1773101443863,2.23210895,84.95,84.93,4.26106994]
[1773101444064,2.23210895,84.95,84.93,5.63407772]
[1773101444467,2.23210895,84.95,84.931,1.37300778]
[1773101444868,2.23210895,84.95,84.931,13.14715065]
[1773101445248,2.23210895,84.948,84.91,4.26106994]
[1773101446364,2.23210895,84.948,84.911,1.37250713]
[1773101446950,2.23210895,84.946,84.912,11.77689843]
[1773101450566,2.193905,84.944,84.912,11.77689843]
[1773101451153,11.77232326,84.945,84.912,11.77689843]
[1773101451154,2.193905,84.939,84.912,11.77689843]
[1773101451854,2.193905,84.937,84.903,1.3708432]
[1773101452053,2.193905,84.937,84.91,4.26106994]
[1773101452667,2.193905,84.937,84.911,1.3708432]
[1773101453380,11.77329346,84.938,84.921,1.37061629]
[1773101453761,13.96719846,84.938,84.92,4.26106994]
[1773101453961,2.193905,84.937,84.92,4.26106994]
[1773101457257,11.77357068,84.936,84.916,1.37061629]
[1773101457459,13.96747568,84.936,84.916,1.37061629]
[1773101457665,13.96747568,84.936,84.917,13.14593942]
[1773101458376,13.96747568,84.936,84.918,1.36952025]
[1773101459082,2.193905,84.936,84.92,4.26106994]
[1773101459866,11.77322093,84.939,84.92,5.63016919]
[1773101460583,11.77322093,84.939,84.921,1.36909925]
[1773101460784,11.76982921,84.963,84.931,1.36889238]
[1773101460959,11.76982921,84.963,84.92,4.26106994]
[1773101460960,2.193905,84.962,84.94,4.26106994]
[1773101461164,2.193905,84.96,84.94,16.03402329]
[1773101461365,11.77010628,84.961,84.941,1.36889238]
[1773101462382,11.77010628,84.961,84.942,11.77273904]
[1773101462778,2.193905,84.96,84.93,4.26106994]
[1773101463364,2.193905,84.96,84.93,5.62935583]
[1773101463564,2.193905,84.96,84.931,1.36828589]
[1773101463565,6.45497494,84.96,84.931,1.36828589]
[1773101463784,2.23885902,84.949,84.916,1.36828589]
[1773101464083,2.23885902,84.949,84.91,4.26106994]
[1773101464267,2.23885902,84.947,84.911,11.77702832]
[1773101465784,2.23885902,84.945,84.91,4.26106994]
[1773101466285,2.23885902,84.939,84.903,11.77814682]
[1773101466978,2.23885902,84.939,84.91,4.26106994]
[1773101467282,2.23885902,84.939,84.903,11.77814682]
[1773101467879,2.23885902,84.937,84.903,11.77814682]
[1773101468582,2.23885902,84.937,84.904,1.36732064]
[1773101468882,2.23885902,84.937,84.903,11.77814682]
[1773101468883,2.23885902,84.937,84.911,1.36732064]
[1773101471085,2.23885902,84.943,84.913,1.36676769]
[1773101471282,2.23885902,84.943,84.92,5.62783763]
[1773101472092,11.77273904,84.942,84.921,1.3665876]
[1773101473279,2.23885902,84.942,84.921,1.3665876]
[1773101474068,2.23885902,84.942,84.917,1.36623358]
[1773101475692,11.77287764,84.941,84.92,5.62712956]
[1773101478679,2.23885902,84.948,84.922,1.36554963]
[1773101478880,11.77153643,84.951,84.931,1.36538352]
[1773101480300,7.51167184,84.955,84.94,5.62628926]
[1773101480599,7.51167184,84.955,84.943,1.36521932]
[1773101488783,7.51167184,84.955,84.944,11.77246185]
[1773101491201,7.51167184,84.955,84.944,13.13599481]
[1773101491801,2.23885902,84.973,84.946,1.36353296]
[1773101492004,29.41659832,84.987,84.96,4.25833421]
[1773101492005,14.00672176,84.978,84.96,4.25833421]
[1773101492500,14.00672176,84.978,84.956,1.36339002]
[1773101492698,2.23885902,84.977,84.956,1.36339002]
[1773101492900,2.23885902,84.977,84.951,1.36324871]
[1773101493295,2.13174942,84.975,84.952,11.77135323]
[1773101493697,2.13174942,84.975,84.952,13.13446226]
[1773101494291,2.13174942,84.975,84.952,11.77135323]
[1773101494494,2.13174942,84.975,84.952,13.13432419]
[1773101494793,2.13174942,84.975,84.954,13.13404707]
[1773101495095,2.13174942,84.975,84.96,4.25833421]
[1773101495702,7.59002199,84.994,84.96,4.25833421]
[1773101495703,2.13174942,84.992,84.96,4.25833421]
[1773101496894,6.39008363,84.99,84.954,1.36256618]
[1773101497099,2.13174942,84.989,84.95,16.02984995]
[1773101497613,2.13174942,84.989,84.95,17.39241613]
[1773101498310,2.13174942,84.987,84.95,17.39241613]
[1773101499891,41.18228455,84.988,84.95,17.39241613]
[1773101499892,2.13174942,84.985,84.951,1.36217519]
[1773101500088,2.13174942,84.985,84.96,5.6205094]
[1773101500904,2.13174942,84.985,84.961,1.36204784]
[1773101501313,2.13174942,84.985,84.96,4.25833421]
[1773101501507,2.13174942,84.985,84.95,42.5626395]
[1773101501719,2.13174942,84.985,84.951,1.36204784]
[1773101504000,2.13174942,84.983,84.952,13.13302773]
[1773101504416,2.13174942,84.983,84.953,1.3616745]
[1773101505315,11.76719775,84.982,84.954,11.77107611]
[1773101505523,2.13174942,84.981,84.954,11.77107611]
[1773101505812,2.13174942,84.981,84.961,1.3614327]
[1773101509725,2.13174942,84.981,84.962,11.76996775]
[1773101510405,2.13174942,84.981,84.963,1.36085209]
[1773101510720,2.10217693,84.986,84.963,1.36085209]
[1773101511118,2.10217693,84.992,84.971,1.36073994]
[1773101512714,2.10217693,84.99,84.971,1.36073994]
[1773101513603,2.10217693,84.99,84.97,16.02707974]
[1773101514812,2.10217693,84.99,84.971,1.36041116]
[1773101515521,2.10217693,84.99,84.97,16.02707974]
[1773101515827,2.10217693,84.99,84.96,4.25833421]
[1773101516526,2.10217693,84.988,84.96,4.25833421]
[1773101517328,2.10217693,84.988,84.96,5.61842778]
[1773101518118,2.10217693,84.988,84.962,1.35999014]
[1773101518316,2.10217693,84.988,84.971,1.35999014]
[1773101518721,2.10217693,84.993,84.971,1.35999014]
[1773101520529,2.10217693,84.993,84.973,1.35978681]
[1773101521316,2.10217693,84.993,84.98,4.25833421]
[1773101521735,2.10217693,84.993,84.973,1.35978681]
[1773101524118,2.10217693,84.993,84.972,11.76858259]
[1773101524335,29.40945909,85.007,84.972,11.76858259]
[1773101524336,2.20539035,84.991,84.972,11.76858259]
[1773101525221,2.20539035,84.979,84.923,1.35920427]
[1773101525423,2.20539035,84.979,84.951,1.35920427]
[1773101526028,2.20539035,84.991,84.97,5.61744525]
[1773101526340,11.76609012,84.99,84.97,5.61744525]
[1773101526536,11.76609012,84.99,84.962,11.76996775]
[1773101526537,2.20539035,84.991,84.98,4.25833421]
[1773101527526,2.20539035,84.991,84.971,1.35911104]
[1773101527730,2.20539035,84.991,84.954,11.7710066]
[1773101527731,2.20539035,84.99,84.954,11.7710066]
[1773101527920,2.20539035,84.989,84.952,11.77135323]
[1773101528127,2.20539035,84.987,84.953,1.35892779]
[1773101528526,2.20539035,84.987,84.952,11.77135323]
[1773101529024,2.20539035,84.979,84.941,1.35883775]
[1773101529332,2.20539035,84.969,84.93,4.25833421]
[1773101529516,2.20539035,84.969,84.932,1.35883775]
[1773101529718,2.20539035,84.969,84.94,4.25833421]
[1773101530134,2.20539035,84.969,84.941,11.77287764]
[1773101530340,2.20539035,84.967,84.941,11.77287764]
[1773101532832,2.20539035,84.965,84.941,11.77287764]
[1773101534932,11.76969069,84.964,84.941,11.77287764]
[1773101535128,2.20539035,84.963,84.941,11.77287764]
[1773101536036,11.76969069,84.964,84.88,4.35833421]
[1773101536037,2.20539035,84.959,84.932,11.77412518]
[1773101537847,2.20539035,84.957,84.926,11.77495702]
[1773101538551,2.20539035,84.957,84.927,1.35807245]
[1773101539131,58.83103278,84.99,84.926,11.77495702]
[1773101539132,2.20539035,84.989,84.95,4.25833421]
[1773101539633,2.20539035,84.989,84.948,1.35799223]
[1773101540033,2.20539035,84.979,84.949,11.77176894]
[1773101542047,2.20539035,84.977,84.949,11.77176894]
[1773101542243,2.20539035,84.977,84.95,1.35775704]
[1773101544252,11.76802861,84.976,84.943,1.35760472]
[1773101544450,2.20539035,84.975,84.943,1.35760472]
[1773101545652,2.20539035,84.973,84.945,1.35752986]
[1773101547460,2.20539035,84.973,84.944,11.77246185]
[1773101548154,2.20539035,84.971,84.945,1.35731043]
[1773101549358,2.20539035,84.969,84.932,1.35723896]
[1773101549540,2.20539035,84.959,84.932,1.35723896]
[1773101550357,2.20539035,84.959,84.933,11.77398655]
[1773101550658,2.20539035,84.959,84.934,1.3571683]
[1773101551960,2.20539035,84.959,84.935,11.7737093]
[1773101553771,2.20539035,84.959,84.924,1.35682704]
[1773101554665,4.25735653,84.96,84.919,30.7963461]
[1773101554666,2.12803476,84.957,84.919,30.7963461]
[1773101554870,2.12803476,84.949,84.914,11.77662105]
[1773101555058,11.7705219,84.958,84.914,11.77662105]
[1773101555059,2.12803476,84.939,84.914,11.77662105]
[1773101557449,2.12803476,84.937,84.914,11.77662105]
[1773101559059,2.12803476,84.935,84.914,11.77662105]
[1773101567380,11.77384792,84.934,84.914,11.77662105]